bitfinex/quotes_SOLUSD_20230402
["timestamp","ask_amount","ask_price","bid_price","bid_amount"]
[1680447081017,108.185,20.834,20.823,10.0]
[1680447081217,108.185,20.834,20.822,20.0]
[1680447081515,105.685,20.834,20.822,20.0]
[1680447085305,27.0,20.833,20.822,20.0]
[1680447085523,27.0,20.833,20.819,41.8203073]
[1680447085524,27.0,20.833,20.82,20.0]
[1680447087806,27.0,20.833,20.816,20.0]
[1680447088615,27.0,20.833,20.813,7.2121209]
[1680447088813,7.2121209,20.832,20.809,90.88879768]
[1680447089010,10.0,20.83,20.811,10.0]
[1680447089206,10.0,20.83,20.812,20.0]
[1680447089408,24.2121209,20.829,20.812,20.0]
[1680447089606,10.0,20.828,20.812,20.0]
[1680447089906,10.0,20.826,20.811,10.0]
[1680447090107,10.0,20.824,20.812,20.0]
[1680447090419,10.0,20.822,20.81,20.0]
[1680447090815,17.0,20.821,20.81,20.0]
[1680447091016,10.0,20.82,20.806,20.0]
[1680447091215,10.0,20.82,20.807,10.0]
[1680447091414,10.0,20.82,20.808,20.0]
[1680447092615,10.0,20.82,20.818,20.0]
[1680447092821,17.0,20.821,20.818,20.0]
[1680447093223,10.0,20.821,20.818,20.0]
[1680447093401,17.0,20.82,20.818,20.0]
[1680447093605,14.5,20.82,20.818,20.0]
[1680447099721,10.0,20.819,20.818,20.0]
[1680447100027,27.0,20.819,20.818,20.0]
[1680447101418,10.0,20.818,20.802,114.6766]
[1680447101618,10.0,20.816,20.801,112.5421]
[1680447101822,10.0,20.814,20.803,10.0]
[1680447102413,10.0,20.814,20.802,10.0]
[1680447104224,10.0,20.816,20.802,10.0]
[1680447104431,10.0,20.814,20.802,10.0]
[1680447105325,10.0,20.818,20.802,10.0]
[1680447105629,10.0,20.816,20.802,17.2121209]
[1680447105831,10.0,20.819,20.803,17.0]
[1680447106026,10.0,20.819,20.804,10.0]
[1680447107332,10.0,20.817,20.804,10.0]
[1680447108136,10.0,20.817,20.802,17.2121209]
[1680447112944,10.0,20.817,20.802,7.2121209]
[1680447114731,10.0,20.815,20.802,7.2121209]
[1680447114933,10.0,20.815,20.801,112.5421]
[1680447115138,10.0,20.815,20.802,20.0]
[1680447119841,10.0,20.813,20.802,20.0]
[1680447127240,10.0,20.815,20.802,20.0]
[1680447127441,10.0,20.813,20.802,20.0]
[1680447131255,10.0,20.815,20.802,20.0]
[1680447131454,17.0,20.816,20.802,20.0]
[1680447131744,10.0,20.817,20.802,20.0]
[1680447131941,10.0,20.817,20.803,10.0]
[1680447132150,34.0151209,20.829,20.803,10.0]
[1680447132326,111.3324,20.825,20.804,24.2121209]
[1680447132531,111.3324,20.825,20.804,72.11472981]
[1680447132740,10.0,20.824,20.805,65.11472981]
[1680447132927,26.803,20.829,20.806,20.0]
[1680447133132,26.803,20.829,20.807,27.0]
[1680447133343,26.803,20.829,20.808,30.0]
[1680447133547,26.803,20.829,20.809,145.1624]
[1680447133728,26.803,20.829,20.81,10.0]
[1680447133934,26.803,20.829,20.812,10.0]
[1680447134126,10.0,20.826,20.812,10.0]
[1680447134531,10.0,20.826,20.812,17.2121209]
[1680447135432,10.0,20.826,20.812,7.2121209]
[1680447136735,10.0,20.826,20.811,20.0]
[1680447137751,10.0,20.824,20.811,20.0]
[1680447138337,10.0,20.824,20.811,10.0]
[1680447138537,10.0,20.824,20.812,20.0]
[1680447141757,17.0,20.825,20.812,20.0]
[1680447144353,17.0,20.825,20.811,20.0]
[1680447144557,10.0,20.824,20.811,20.0]
[1680447144754,10.0,20.822,20.811,20.0]
[1680447144957,10.0,20.822,20.81,20.0]
[1680447145163,10.0,20.822,20.811,10.0]
[1680447145349,10.0,20.822,20.812,20.0]
[1680447145661,10.0,20.824,20.812,20.0]
[1680447149964,10.0,20.824,20.812,10.0]
[1680447151870,10.0,20.824,20.811,20.0]
[1680447152655,10.0,20.826,20.812,10.0]
[1680447153264,10.0,20.826,20.811,20.0]
[1680447153468,10.0,20.824,20.811,20.0]
[1680447153665,10.0,20.822,20.811,20.0]
[1680447153968,10.0,20.82,20.81,20.0]
[1680447155161,10.0,20.82,20.802,10.0]
[1680447155465,10.0,20.818,20.803,30.0]
[1680447155672,10.0,20.816,20.799,116.4118]
[1680447155871,17.0,20.815,20.8,10.0]
[1680447156168,10.0,20.814,20.8,10.0]
[1680447156370,10.0,20.812,20.8,10.0]
[1680447156854,123.6834,20.812,20.802,10.0]
[1680447157352,123.6834,20.812,20.801,20.0]
[1680447158669,123.6834,20.812,20.8,10.0]
[1680447158859,123.6834,20.812,20.801,20.0]
[1680447160965,123.6834,20.812,20.8,10.0]
[1680447161172,123.6834,20.812,20.802,10.0]
[1680447161471,123.6834,20.812,20.8,10.0]
[1680447161657,123.6834,20.812,20.802,10.0]
[1680447161855,123.6834,20.812,20.8,10.0]
[1680447162055,123.6834,20.812,20.801,20.0]
[1680447162560,123.6834,20.812,20.795,10.0]
[1680447162760,10.0,20.81,20.795,10.0]
[1680447165253,10.0,20.81,20.793,10.0]
[1680447166064,7.5,20.81,20.793,10.0]
[1680447168174,27.0,20.811,20.793,10.0]
[1680447169971,123.6834,20.812,20.793,10.0]
[1680447171669,113.6834,20.812,20.799,10.0]
[1680447171877,113.6834,20.812,20.8,37.0]
[1680447172066,10.0,20.828,20.801,10.0]
[1680447172265,10.0,20.828,20.801,232.8485]
[1680447172462,17.2121209,20.827,20.803,10.0]
[1680447172661,115.8197,20.821,20.803,10.0]
[1680447172882,10.0,20.816,20.803,10.0]
[1680447176679,10.0,20.816,20.802,30.0]
[1680447178074,115.8197,20.821,20.804,10.0]
[1680447180882,115.8197,20.821,20.803,17.0]
[1680447181582,115.8197,20.821,20.802,30.0]
[1680447181781,115.8197,20.821,20.804,10.0]
[1680447181984,115.8197,20.821,20.806,10.0]
[1680447182285,115.8197,20.821,20.807,17.0]
[1680447183181,115.8197,20.821,20.806,10.0]
[1680447183384,115.8197,20.821,20.808,10.0]
[1680447185583,113.6834,20.823,20.81,10.0]
[1680447186096,113.6834,20.823,20.809,17.0]
[1680447186386,10.0,20.822,20.809,17.0]
[1680447187591,10.0,20.822,20.806,10.0]
[1680447187790,10.0,20.822,20.808,10.0]
[1680447190683,10.0,20.822,20.806,10.0]
[1680447190883,10.0,20.822,20.808,10.0]
[1680447192291,113.6834,20.823,20.81,10.0]
[1680447192489,113.6834,20.823,20.812,10.0]
[1680447192887,16.806,20.825,20.814,10.0]
[1680447195097,16.806,20.825,20.813,17.0]
[1680447197581,16.806,20.825,20.814,10.0]
[1680447197783,16.806,20.825,20.815,17.0]
[1680447197987,16.806,20.825,20.816,10.0]
[1680447198187,16.806,20.825,20.817,17.0]
[1680447198389,16.806,20.825,20.818,10.0]
[1680447198791,16.806,20.825,20.817,17.0]
[1680447206718,16.806,20.825,20.816,10.0]
[1680447206898,16.806,20.825,20.817,17.0]
[1680447209199,16.806,20.825,20.816,10.0]
[1680447209404,16.806,20.825,20.817,17.0]
[1680447209717,16.806,20.825,20.816,10.0]
[1680447209921,16.806,20.825,20.812,10.0]
[1680447210103,14.306,20.825,20.812,10.0]
[1680447210305,14.306,20.825,20.806,62.46167102]
[1680447210504,14.306,20.825,20.811,20.0]
[1680447212113,14.306,20.825,20.812,17.0]
[1680447220921,14.306,20.825,20.811,20.0]
[1680447221233,14.306,20.825,20.811,10.0]
[1680447221436,14.306,20.825,20.813,10.0]
[1680447221636,14.306,20.825,20.812,20.0]
[1680447223439,14.306,20.825,20.812,10.0]
[1680447223938,14.306,20.825,20.811,20.0]
[1680447225537,14.306,20.825,20.811,10.0]
[1680447225737,14.306,20.825,20.813,10.0]
[1680447226130,14.306,20.825,20.814,17.0]
[1680447227037,14.306,20.825,20.815,10.0]
[1680447227235,14.306,20.825,20.816,17.0]
[1680447227434,14.306,20.825,20.817,10.0]
[1680447227635,14.306,20.825,20.818,17.0]
[1680447228939,14.306,20.825,20.816,17.0]
[1680447233539,14.306,20.825,20.817,10.0]
[1680447233733,14.306,20.825,20.819,10.0]
[1680447233934,14.306,20.825,20.82,20.0]
[1680447234143,14.306,20.825,20.821,27.0]
[1680447234450,14.306,20.825,20.823,10.0]
[1680447234655,14.306,20.825,20.822,20.0]
[1680447238342,14.306,20.825,20.824,10.0]
[1680447238646,14.306,20.825,20.822,20.0]
[1680447238846,14.306,20.825,20.823,17.0]
[1680447240038,14.306,20.825,20.822,20.0]
[1680447240246,14.306,20.825,20.821,20.0]
[1680447248048,14.306,20.825,20.815,10.0]
[1680447248247,14.306,20.825,20.816,20.0]
[1680447248446,14.306,20.825,20.813,45.24955012]
[1680447248642,14.306,20.825,20.809,162.89967558]
[1680447248643,14.306,20.825,20.809,115.0196]
[1680447248845,10.0,20.824,20.811,10.0]
[1680447249248,10.0,20.824,20.802,10.0]
[1680447249633,10.0,20.824,20.802,17.2121209]
[1680447249838,10.0,20.824,20.805,10.0]
[1680447250041,10.0,20.822,20.805,10.0]
[1680447250458,10.0,20.822,20.807,10.0]
[1680447250644,10.0,20.822,20.808,20.0]
[1680447253445,10.0,20.822,20.807,10.0]
[1680447253753,10.0,20.822,20.809,10.0]
[1680447253959,10.0,20.822,20.81,20.0]
[1680447254458,10.0,20.822,20.81,10.0]
[1680447254658,10.0,20.822,20.811,20.0]
[1680447255357,10.0,20.822,20.81,10.0]
[1680447255556,10.0,20.822,20.811,20.0]
[1680447255956,10.0,20.822,20.81,10.0]
[1680447256165,10.0,20.822,20.811,20.0]
[1680447256342,10.0,20.822,20.809,20.0]
[1680447257158,10.0,20.822,20.808,20.0]
[1680447257355,10.0,20.822,20.807,10.0]
[1680447257539,10.0,20.822,20.808,20.0]
[1680447258240,10.0,20.822,20.802,57.88007558]
[1680447258656,10.0,20.82,20.802,57.88007558]
[1680447258851,10.0,20.818,20.804,30.0]
[1680447259052,17.0,20.817,20.801,10.0]
[1680447259242,10.0,20.816,20.802,20.0]
[1680447259639,17.0,20.815,20.802,20.0]
[1680447259856,10.0,20.814,20.799,10.0]
[1680447260055,120.0281,20.814,20.8,20.0]
[1680447262346,120.0281,20.814,20.797,10.0]
[1680447262347,120.0281,20.814,20.799,10.0]
[1680447262555,120.0281,20.814,20.8,20.0]
[1680447263663,120.0281,20.814,20.799,10.0]
[1680447263847,120.0281,20.814,20.8,20.0]
[1680447264451,120.0281,20.814,20.798,20.0]
[1680447264652,120.0281,20.814,20.799,10.0]
[1680447264862,120.0281,20.814,20.8,20.0]
[1680447266048,120.0281,20.814,20.799,10.0]
[1680447266363,120.0281,20.814,20.801,10.0]
[1680447266558,120.0281,20.814,20.802,20.0]
[1680447266868,10.0,20.812,20.802,20.0]
[1680447267365,10.0,20.81,20.8,20.0]
[1680447268066,10.0,20.81,20.799,10.0]
[1680447268271,10.0,20.81,20.804,30.0]
[1680447270256,129.545,20.812,20.804,30.0]
[1680447270448,10.0,20.81,20.804,30.0]
[1680447277881,119.545,20.812,20.804,30.0]
[1680447284759,71.87365559,20.825,20.804,30.0]
[1680447284960,71.87365559,20.825,20.805,10.0]
[1680447285167,122.5337,20.823,20.805,10.0]
[1680447286373,10.0,20.819,20.805,10.0]
[1680447287678,10.0,20.819,20.807,10.0]
[1680447291075,122.5337,20.823,20.807,10.0]
[1680447293665,122.5337,20.823,20.806,17.0]
[1680447294874,122.5337,20.823,20.802,10.0]
[1680447295063,10.0,20.819,20.804,10.0]
[1680447295666,10.0,20.819,20.803,17.0]
[1680447297292,17.0,20.818,20.794,443.18007558]
[1680447297474,10.0,20.817,20.803,10.0]
[1680447297784,10.0,20.815,20.802,20.0]
[1680447308199,10.0,20.819,20.802,20.0]
[1680447308404,10.0,20.82,20.803,27.0]
[1680447318795,10.0,20.821,20.803,27.0]
[1680447318986,112.5337,20.823,20.804,20.0]
[1680447319187,112.5337,20.823,20.805,27.0]
[1680447319496,112.5337,20.823,20.807,10.0]
[1680447319796,112.5337,20.823,20.809,10.0]
[1680447320003,112.5337,20.823,20.811,10.0]
[1680447320214,112.5337,20.823,20.813,10.0]
[1680447320589,112.5337,20.823,20.811,10.0]
[1680447320788,112.5337,20.823,20.813,10.0]
[1680447321590,112.5337,20.823,20.811,10.0]
[1680447321901,112.5337,20.823,20.813,10.0]
[1680447322285,112.5337,20.823,20.812,20.0]
[1680447322493,112.5337,20.823,20.81,20.0]
[1680447323396,14.306,20.825,20.81,20.0]
[1680447328120,14.306,20.825,20.811,10.0]
[1680447328302,14.306,20.825,20.812,20.0]
[1680447333017,14.306,20.825,20.811,10.0]
[1680447333204,14.306,20.825,20.813,10.0]
[1680447333796,14.306,20.825,20.811,10.0]
[1680447334115,14.306,20.825,20.813,10.0]
[1680447334499,14.306,20.825,20.812,20.0]
[1680447339014,14.306,20.825,20.811,10.0]
[1680447339217,14.306,20.825,20.812,20.0]
[1680447341603,14.306,20.825,20.811,10.0]
[1680447341911,14.306,20.825,20.813,10.0]
[1680447342816,14.306,20.825,20.812,20.0]
[1680447346608,14.306,20.825,20.811,10.0]
[1680447346810,14.306,20.825,20.813,10.0]
[1680447347622,14.306,20.825,20.811,10.0]
[1680447347808,14.306,20.825,20.813,10.0]
[1680447349019,14.306,20.825,20.811,10.0]
[1680447349206,14.306,20.825,20.813,10.0]
[1680447350318,14.306,20.825,20.811,10.0]
[1680447350617,14.306,20.825,20.813,10.0]
[1680447352023,14.306,20.825,20.812,20.0]
[1680447353827,14.306,20.825,20.813,27.0]
[1680447360126,14.306,20.825,20.812,20.0]
[1680447364532,14.306,20.825,20.811,10.0]
[1680447364732,14.306,20.825,20.813,10.0]
[1680447365232,14.306,20.825,20.811,10.0]
[1680447365416,14.306,20.825,20.813,10.0]
[1680447366631,14.306,20.825,20.812,20.0]
[1680447366826,10.0,20.823,20.811,10.0]
[1680447367133,10.0,20.821,20.812,20.0]
[1680447368032,10.0,20.819,20.81,20.0]
[1680447368228,10.0,20.819,20.809,10.0]
[1680447368427,10.0,20.819,20.81,20.0]
[1680447369027,10.0,20.819,20.809,10.0]
[1680447369226,10.0,20.819,20.81,20.0]
[1680447369827,10.0,20.819,20.808,20.0]
[1680447372033,10.0,20.819,20.807,19.211652]
[1680447372340,10.0,20.817,20.807,19.211652]
[1680447372647,10.0,20.815,20.807,19.211652]
[1680447372825,10.0,20.813,20.807,19.211652]
[1680447375032,10.0,20.811,20.807,19.211652]
[1680447375638,10.0,20.813,20.807,19.211652]
[1680447375945,10.0,20.811,20.807,19.211652]
[1680447376529,17.0,20.812,20.807,19.211652]
[1680447378745,17.0,20.812,20.795,10.0]
[1680447378931,127.0946,20.812,20.797,10.0]
[1680447379334,127.0946,20.812,20.799,10.0]
[1680447379529,127.0946,20.812,20.8,20.0]
[1680447380427,17.0,20.812,20.8,20.0]
[1680447380630,10.0,20.813,20.8,20.0]
[1680447380830,17.0,20.812,20.8,20.0]
[1680447381046,10.0,20.811,20.8,20.0]
[1680447383230,17.0,20.812,20.8,20.0]
[1680447388538,17.0,20.812,20.799,10.0]
[1680447388750,136.0346,20.812,20.8,20.0]
[1680447389460,10.0,20.811,20.8,20.0]
[1680447389942,10.0,20.811,20.799,10.0]
[1680447390138,10.0,20.811,20.8,20.0]
[1680447392058,10.0,20.811,20.799,10.0]
[1680447392248,10.0,20.811,20.801,10.0]
[1680447392551,10.0,20.811,20.799,10.0]
[1680447392762,10.0,20.811,20.801,10.0]
[1680447392946,10.0,20.811,20.799,10.0]
[1680447393145,10.0,20.811,20.801,10.0]
[1680447393652,119.0346,20.812,20.801,10.0]
[1680447393853,10.0,20.811,20.799,10.0]
[1680447394056,10.0,20.811,20.801,10.0]
[1680447394452,10.0,20.811,20.8,20.0]
[1680447395642,10.0,20.811,20.799,10.0]
[1680447395948,10.0,20.811,20.801,10.0]
[1680447396248,10.0,20.811,20.8,20.0]
[1680447397062,10.0,20.809,20.798,20.0]
[1680447397244,10.0,20.809,20.798,10.0]
[1680447397445,10.0,20.809,20.799,20.0]
[1680447398059,10.0,20.809,20.798,10.0]
[1680447398357,10.0,20.809,20.799,20.0]
[1680447398957,10.0,20.809,20.798,10.0]
[1680447399162,10.0,20.809,20.799,20.0]
[1680447399853,10.0,20.809,20.798,10.0]
[1680447400056,10.0,20.809,20.799,20.0]
[1680447400556,10.0,20.809,20.798,10.0]
[1680447400754,10.0,20.809,20.799,20.0]
[1680447401860,10.0,20.807,20.799,20.0]
[1680447402063,10.0,20.807,20.797,10.0]
[1680447402249,10.0,20.807,20.798,20.0]
[1680447402945,10.0,20.805,20.796,20.0]
[1680447403660,10.0,20.807,20.796,20.0]
[1680447403960,10.0,20.805,20.796,20.0]
[1680447404861,17.0,20.806,20.796,20.0]
[1680447407465,10.0,20.807,20.795,19.221666]
[1680447407651,10.0,20.805,20.795,19.221666]
[1680447409372,10.0,20.803,20.795,19.221666]
[1680447409761,17.0,20.802,20.795,19.221666]
[1680447410854,10.0,20.803,20.795,19.221666]
[1680447411054,17.0,20.802,20.795,19.221666]
[1680447411659,17.0,20.802,20.791,111.6497]
[1680447411859,17.0,20.802,20.793,10.0]
[1680447412172,10.0,20.803,20.793,10.0]
[1680447412468,17.0,20.802,20.793,10.0]
[1680447412775,17.0,20.802,20.79,116.2153]
[1680447413072,17.0,20.802,20.792,10.0]
[1680447415371,10.0,20.805,20.792,10.0]
[1680447415569,10.0,20.803,20.792,61.4216861]
[1680447415771,10.0,20.805,20.792,61.4216861]
[1680447415968,10.0,20.805,20.792,68.633807]
[1680447416173,10.0,20.805,20.792,177.515307]
[1680447417069,10.0,20.803,20.792,177.515307]
[1680447417375,10.0,20.803,20.792,167.515307]
[1680447418273,17.0,20.804,20.792,167.515307]
[1680447418774,10.0,20.805,20.792,167.515307]
[1680447419970,10.0,20.807,20.793,10.0]
[1680447420172,10.0,20.805,20.793,10.0]
[1680447422876,17.0,20.806,20.793,10.0]
[1680447424576,17.0,20.806,20.792,167.515307]
[1680447425778,17.0,20.806,20.792,116.0936209]
[1680447425779,10.0,20.805,20.792,116.0936209]
[1680447425977,17.0,20.804,20.792,116.0936209]
[1680447426279,10.0,20.803,20.792,116.0936209]
[1680447426475,10.0,20.801,20.792,116.0936209]
[1680447427173,10.0,20.803,20.792,116.0936209]
[1680447427482,10.0,20.801,20.792,116.0936209]
[1680447428078,17.0,20.802,20.792,116.0936209]
[1680447428275,10.0,20.805,20.792,116.0936209]
[1680447428475,10.0,20.805,20.792,167.515307]
[1680447428676,10.0,20.803,20.792,167.515307]
[1680447429283,17.0,20.804,20.792,167.515307]
[1680447436988,10.0,20.805,20.792,167.515307]
[1680447437278,10.0,20.803,20.792,167.515307]
[1680447437486,10.0,20.801,20.792,167.515307]
[1680447438282,10.0,20.803,20.792,167.515307]
[1680447438485,17.0,20.802,20.792,167.515307]
[1680447438886,17.0,20.802,20.792,51.4216861]
[1680447439084,17.0,20.802,20.79,116.2153]
[1680447440085,16.92939841,20.802,20.788,19.22919]
[1680447440293,10.0,20.801,20.788,19.22919]
[1680447442290,17.0,20.8,20.788,19.22919]
[1680447442592,10.0,20.799,20.788,19.22919]
[1680447442895,10.0,20.797,20.788,19.22919]
[1680447443079,10.0,20.795,20.788,19.22919]
[1680447443999,17.0,20.794,20.788,19.22919]
[1680447444585,10.0,20.793,20.788,19.22919]
[1680447444786,17.0,20.792,20.788,19.22919]
[1680447445089,10.0,20.791,20.788,19.22919]
[1680447445290,17.0,20.79,20.788,19.22919]
[1680447445586,10.0,20.789,20.779,111.5702]
[1680447445777,17.0,20.788,20.78,20.0]
[1680447446178,10.0,20.791,20.78,20.0]
[1680447446594,10.0,20.791,20.778,45.71613054]
[1680447446788,10.0,20.793,20.78,10.0]
[1680447447091,10.0,20.793,20.782,10.0]
[1680447447486,10.0,20.793,20.781,20.0]
[1680447449789,10.0,20.795,20.781,20.0]
[1680447450676,10.0,20.793,20.781,20.0]
[1680447450891,17.0,20.792,20.781,20.0]
[1680447451100,17.0,20.792,20.781,10.0]
[1680447451803,17.0,20.792,20.78,30.0]
[1680447452503,17.0,20.792,20.78,20.0]
[1680447454699,10.0,20.791,20.78,20.0]
[1680447454900,10.0,20.789,20.78,20.0]
[1680447455095,17.0,20.788,20.78,20.0]
[1680447455294,10.0,20.791,20.78,20.0]
[1680447456901,10.0,20.789,20.78,20.0]
[1680447457400,10.0,20.787,20.778,20.0]
[1680447457600,10.0,20.785,20.768,117.2887]
[1680447457781,17.0,20.784,20.768,117.2887]
[1680447459800,10.0,20.785,20.768,117.2887]
[1680447460000,17.0,20.784,20.768,117.2887]
[1680447461504,10.0,20.785,20.768,117.2887]
[1680447461810,17.0,20.784,20.768,117.2887]
[1680447461992,17.0,20.784,20.769,10.0]
[1680447462192,10.0,20.789,20.769,10.0]
[1680447462388,10.0,20.789,20.775,10.0]
[1680447463693,10.0,20.787,20.775,10.0]
[1680447463892,17.0,20.786,20.775,10.0]
[1680447464699,17.0,20.788,20.775,10.0]
[1680447467514,10.0,20.789,20.775,10.0]
[1680447470314,10.0,20.787,20.775,10.0]
[1680447470517,10.0,20.787,20.769,10.0]
[1680447470821,17.0,20.786,20.771,10.0]
[1680447471317,17.0,20.786,20.777,19.239481]
[1680447474911,10.0,20.787,20.777,19.239481]
[1680447475111,10.0,20.785,20.777,19.239481]
[1680447475306,17.0,20.784,20.777,19.239481]
[1680447475523,10.0,20.783,20.777,19.239481]
[1680447475714,17.0,20.784,20.777,19.239481]
[1680447477925,10.0,20.785,20.777,19.239481]
[1680447478424,10.0,20.783,20.777,19.239481]
[1680447478821,17.0,20.784,20.777,19.239481]
[1680447481416,10.0,20.785,20.777,19.239481]
[1680447481614,10.0,20.783,20.777,19.239481]
[1680447482124,10.0,20.785,20.777,19.239481]
[1680447482429,10.0,20.783,20.777,19.239481]
[1680447482722,17.0,20.784,20.777,19.239481]
[1680447484614,10.0,20.785,20.777,19.239481]
[1680447484817,10.0,20.783,20.777,19.239481]
[1680447485411,29.246718,20.799,20.777,19.239481]
[1680447485617,10.0,20.797,20.777,19.239481]
[1680447486729,10.0,20.787,20.777,19.239481]
[1680447489626,17.0,20.788,20.777,19.239481]
[1680447489827,10.0,20.787,20.777,19.239481]
[1680447490031,10.0,20.785,20.777,19.239481]
[1680447490424,17.0,20.784,20.777,19.239481]
[1680447491737,10.0,20.785,20.777,19.239481]
[1680447491923,10.0,20.783,20.777,19.239481]
[1680447492739,10.0,20.785,20.777,19.239481]
[1680447492923,10.0,20.783,20.777,19.239481]
[1680447493540,17.0,20.786,20.777,19.239481]
[1680447494735,10.0,20.787,20.777,19.239481]
[1680447495040,10.0,20.785,20.777,19.239481]
[1680447495241,10.0,20.787,20.777,19.239481]
[1680447495727,17.0,20.786,20.771,10.0]
[1680447496743,10.0,20.787,20.771,10.0]
[1680447496943,10.0,20.785,20.771,10.0]
[1680447497242,10.0,20.787,20.771,10.0]
[1680447497426,10.0,20.785,20.771,10.0]
[1680447497626,17.0,20.788,20.771,10.0]
[1680447500136,10.0,20.787,20.771,10.0]
[1680447500344,17.0,20.786,20.771,10.0]
[1680447500543,10.0,20.785,20.771,10.0]
[1680447500845,17.0,20.784,20.771,10.0]
[1680447503530,10.0,20.785,20.771,10.0]
[1680447503849,10.0,20.783,20.771,10.0]
[1680447504145,17.0,20.784,20.771,10.0]
[1680447505233,10.0,20.785,20.771,10.0]
[1680447505542,17.0,20.784,20.771,10.0]
[1680447506639,17.0,20.784,20.769,10.0]
[1680447506941,17.0,20.784,20.771,10.0]
[1680447508346,10.0,20.785,20.771,10.0]
[1680447508547,10.0,20.783,20.771,10.0]
[1680447508848,10.0,20.785,20.771,10.0]
[1680447509046,10.0,20.783,20.771,10.0]
[1680447509235,10.0,20.785,20.771,10.0]
[1680447509441,10.0,20.783,20.771,10.0]
[1680447510450,10.0,20.785,20.771,10.0]
[1680447512337,17.0,20.786,20.771,10.0]
[1680447516445,17.0,20.786,20.77,39.245745]
[1680447516754,10.0,20.785,20.77,39.245745]
[1680447516948,10.0,20.783,20.77,39.245745]
[1680447517353,10.0,20.781,20.77,39.245745]
[1680447517852,10.0,20.779,20.77,39.245745]
[1680447518047,17.0,20.78,20.77,39.245745]
[1680447521759,10.0,20.781,20.77,39.245745]
[1680447521941,10.0,20.779,20.77,39.245745]
[1680447522441,17.0,20.778,20.77,39.245745]
[1680447524536,17.0,20.778,20.77,19.245745]
[1680447530752,10.0,20.777,20.77,19.245745]
[1680447530958,10.0,20.775,20.77,19.245745]
[1680447531343,10.0,20.773,20.77,19.245745]